bitfinex/quotes_BTCUSD_20240731
["timestamp","ask_amount","ask_price","bid_price","bid_amount"]
[1722403329010,0.00091301,65773.0,65772.0,1.74164359]
[1722403329318,0.00091301,65773.0,65772.0,1.71829747]
[1722403329747,0.00091301,65773.0,65772.0,1.72829747]
[1722403329965,0.00091301,65773.0,65772.0,1.71429747]
[1722403330200,0.00091301,65773.0,65772.0,1.41421747]
[1722403331066,0.00091301,65773.0,65772.0,1.04963747]
[1722403331276,0.00091301,65773.0,65772.0,1.35371747]
[1722403331708,0.00091301,65773.0,65772.0,1.36371747]
[1722403331929,0.00091301,65773.0,65772.0,1.46711747]
[1722403332759,0.00091301,65773.0,65772.0,1.79119747]
[1722403333210,0.001416,65775.0,65774.0,1.195248]
[1722403333423,0.00091301,65785.0,65784.0,0.891062]
[1722403333632,0.00091301,65792.0,65790.0,0.161998]
[1722403333837,0.00091301,65792.0,65790.0,1.54796124]
[1722403334075,0.00091301,65792.0,65790.0,1.56796124]
[1722403334300,0.00091301,65792.0,65791.0,1.13815847]
[1722403334520,0.00091301,65792.0,65791.0,1.69278351]
[1722403334736,0.00091301,65792.0,65791.0,1.36879151]
[1722403334952,0.00091301,65792.0,65791.0,1.34460504]
[1722403335649,0.00091301,65792.0,65791.0,1.35879151]
[1722403335916,0.00091301,65792.0,65791.0,1.32860504]
[1722403336170,0.00091301,65792.0,65791.0,1.33860504]
[1722403336396,0.00091301,65792.0,65791.0,1.32860504]
[1722403336623,0.00091301,65792.0,65791.0,1.34260504]
[1722403337330,0.00091301,65792.0,65791.0,1.35150015]
[1722403337950,0.00091301,65792.0,65791.0,1.33750015]
[1722403338399,0.00091301,65792.0,65791.0,1.35150015]
[1722403338807,0.00091301,65792.0,65791.0,1.33750015]
[1722403339005,0.00091301,65792.0,65791.0,1.35150015]
[1722403339433,0.00091301,65792.0,65791.0,1.36550015]
[1722403340066,0.00091301,65792.0,65791.0,1.35150015]
[1722403340298,0.00091301,65792.0,65791.0,1.33750015]
[1722403340530,0.00091301,65792.0,65791.0,1.35150015]
[1722403340757,0.00091301,65792.0,65791.0,1.36150015]
[1722403340963,0.00091301,65792.0,65791.0,1.35150015]
[1722403341837,0.00091301,65792.0,65791.0,1.33750015]
[1722403342106,0.00091301,65792.0,65791.0,1.32350015]
[1722403342345,0.00091301,65792.0,65791.0,1.35150015]
[1722403342804,0.00091301,65792.0,65791.0,1.33750015]
[1722403343054,0.00091301,65792.0,65791.0,0.28752815]
[1722403343284,0.00091301,65792.0,65791.0,0.03689511]
[1722403343285,0.14491301,65792.0,65791.0,0.03689511]
[1722403343584,0.15504442,65792.0,65791.0,0.02289511]
[1722403343790,0.15504442,65792.0,65791.0,0.18889111]
[1722403344034,0.15504442,65792.0,65791.0,0.02289511]
[1722403344283,0.15504442,65792.0,65791.0,0.18889111]
[1722403344537,0.15504442,65792.0,65791.0,0.03689511]
[1722403345284,0.15704442,65792.0,65791.0,0.02289511]
[1722403345509,0.30903842,65792.0,65791.0,0.03689511]
[1722403345740,0.15704442,65792.0,65791.0,0.03689511]
[1722403346013,0.30903842,65792.0,65791.0,0.028]
[1722403346265,0.15704442,65792.0,65791.0,0.028]
[1722403346974,0.15704442,65792.0,65791.0,0.014]
[1722403347228,0.15504442,65792.0,65791.0,0.007]
[1722403347481,0.15504442,65792.0,65791.0,0.013]
[1722403347936,0.15504442,65792.0,65791.0,0.01383]
[1722403348414,0.15504442,65792.0,65791.0,0.00683]
[1722403348654,0.14691301,65792.0,65791.0,0.00683]
[1722403348880,0.15507192,65792.0,65791.0,0.01383]
[1722403349592,0.15507192,65792.0,65791.0,0.00683]
[1722403349819,0.15507192,65792.0,65791.0,0.00083]
[1722403350092,0.15707192,65792.0,65791.0,0.01583]
[1722403350329,1.31702977,65792.0,65791.0,0.00883]
[1722403350569,1.31702977,65792.0,65791.0,0.00083]
[1722403350795,1.31702977,65792.0,65791.0,0.00683]
[1722403351026,1.31702977,65792.0,65791.0,0.00083]
[1722403351512,1.01304177,65792.0,65791.0,0.00083]
[1722403351786,0.40470329,65792.0,65791.0,0.00783]
[1722403352053,1.01267929,65792.0,65791.0,0.01483]
[1722403352284,1.01267929,65792.0,65791.0,0.00783]
[1722403352285,0.70870392,65792.0,65791.0,0.00783]
[1722403352745,0.70870392,65792.0,65791.0,0.01583]
[1722403353217,0.70870392,65792.0,65791.0,0.00083]
[1722403353478,0.70870392,65792.0,65791.0,0.01483]
[1722403353967,1.01269192,65792.0,65791.0,0.01483]
[1722403354190,1.31667992,65792.0,65791.0,0.01483]
[1722403354410,1.01269192,65792.0,65791.0,0.01483]
[1722403354878,1.01252089,65792.0,65791.0,0.00083]
[1722403355096,1.01252089,65792.0,65791.0,0.00183]
[1722403355312,1.31650889,65792.0,65791.0,0.00183]
[1722403355521,1.01252089,65792.0,65791.0,0.00083]
[1722403355939,1.01252089,65792.0,65791.0,0.00183]
[1722403356578,1.31650889,65792.0,65791.0,0.00183]
[1722403356790,1.61830144,65792.0,65791.0,0.00183]
[1722403358055,1.61862346,65792.0,65791.0,0.00183]
[1722403358290,1.61862346,65792.0,65762.0,0.82391431]
[1722403358291,0.154046,65770.0,65766.0,0.1]
[1722403358502,0.002,65763.0,65762.0,0.44444115]
[1722403358716,0.144,65769.0,65760.0,0.152066]
[1722403358717,0.002,65766.0,65760.0,0.152066]
[1722403358948,0.002,65766.0,65757.0,0.304148]
[1722403358949,0.01001311,65763.0,65761.0,0.152065]
[1722403359151,0.002,65766.0,65761.0,0.152065]
[1722403359367,0.01001307,65762.0,65759.0,0.152068]
[1722403359581,0.002,65764.0,65759.0,0.30270104]
[1722403359804,0.01001303,65761.0,65759.0,0.30270104]
[1722403360018,0.002,65765.0,65762.0,0.014]
[1722403360220,0.00992248,65764.0,65761.0,0.152065]
[1722403360632,0.144,65769.0,65763.0,0.152059]
[1722403360839,0.144,65769.0,65764.0,0.22740516]
[1722403361530,0.144,65769.0,65765.0,0.152056]
[1722403361531,0.001,65766.0,65765.0,0.152056]
[1722403361741,0.001,65766.0,65763.0,0.15206]
[1722403361948,0.144,65769.0,65763.0,0.15206]
[1722403362162,0.144,65769.0,65764.0,0.155058]
[1722403362376,0.144,65769.0,65764.0,0.23202108]
[1722403362589,0.002,65768.0,65765.0,0.152054]
[1722403362794,0.144,65769.0,65766.0,0.00304072]
[1722403362968,0.144,65769.0,65767.0,0.152051]
[1722403363174,0.144,65769.0,65766.0,0.15509372]
[1722403364013,0.14418594,65769.0,65766.0,0.16009372]
[1722403364218,0.08268594,65769.0,65767.0,0.15205]
[1722403364420,0.08268594,65769.0,65766.0,0.00804072]
[1722403364623,0.08268594,65769.0,65768.0,0.152049]
[1722403365233,0.08268594,65769.0,65766.0,0.16409172]
[1722403365438,0.08268594,65769.0,65768.0,0.152049]
[1722403365649,0.08268594,65769.0,65768.0,0.456148]
[1722403365854,0.08368594,65769.0,65768.0,0.460148]
[1722403366057,0.08368594,65769.0,65768.0,0.156049]
[1722403366483,0.08368594,65769.0,65768.0,0.460148]
[1722403367091,0.08268594,65769.0,65768.0,0.456148]
[1722403367297,0.08268594,65769.0,65768.0,0.461148]
[1722403367711,0.08268594,65769.0,65768.0,0.456148]
[1722403367923,0.00018594,65769.0,65768.0,0.91088004]
[1722403368141,0.00018594,65769.0,65768.0,0.95058004]
[1722403368351,0.00118594,65769.0,65768.0,1.75987804]
[1722403368565,0.00118594,65769.0,65768.0,1.78287804]
[1722403368779,0.00018594,65769.0,65768.0,1.77587804]
[1722403369007,0.00018594,65769.0,65768.0,1.79087804]
[1722403369210,0.00118594,65769.0,65768.0,1.79087804]
[1722403369416,0.00118594,65769.0,65768.0,1.78487804]
[1722403369621,0.00118594,65769.0,65768.0,1.79887804]
[1722403370037,0.00118594,65769.0,65768.0,1.78487804]
[1722403370248,0.00118594,65769.0,65768.0,1.79887804]
[1722403370454,0.00018594,65769.0,65768.0,1.78987804]
[1722403370692,0.00118594,65769.0,65768.0,1.80387804]
[1722403371132,0.00018594,65769.0,65768.0,1.78987804]
[1722403371584,0.00018594,65769.0,65768.0,1.80465737]
[1722403371585,0.00118594,65769.0,65768.0,1.80465737]
[1722403371795,0.00118594,65769.0,65768.0,1.76087804]
[1722403372007,0.00118594,65769.0,65768.0,1.74687804]
[1722403372212,0.00018594,65769.0,65768.0,1.75287804]
[1722403372426,0.00018594,65769.0,65768.0,1.76687804]
[1722403372631,0.00018594,65769.0,65768.0,1.73287804]
[1722403373052,0.00018594,65769.0,65768.0,1.74687804]
[1722403373266,0.00018594,65769.0,65768.0,1.31497904]
[1722403373473,0.00018594,65769.0,65768.0,1.32897904]
[1722403373688,0.00118594,65769.0,65768.0,1.34297904]
[1722403373955,0.00118594,65769.0,65768.0,1.32897904]
[1722403374171,0.00018594,65769.0,65768.0,1.32497904]
[1722403374387,0.00118594,65769.0,65768.0,1.33897904]
[1722403374816,0.00118594,65769.0,65768.0,1.35897904]
[1722403375265,0.00118594,65769.0,65768.0,1.67707804]
[1722403375479,0.00118594,65769.0,65768.0,1.66307804]
[1722403375900,0.00118594,65769.0,65768.0,1.67707804]
[1722403379046,0.00118594,65769.0,65768.0,1.35297904]
[1722403379264,0.00118594,65769.0,65768.0,1.37297904]
[1722403379674,0.00118594,65769.0,65768.0,1.67707804]
[1722403381359,0.00118594,65769.0,65768.0,1.65707804]
[1722403381577,0.00118594,65769.0,65768.0,1.67707804]
[1722403384744,0.00118594,65769.0,65768.0,1.34297904]
[1722403385718,0.00118594,65769.0,65768.0,1.35297904]
[1722403386407,0.00118594,65769.0,65768.0,1.65707804]
[1722403386637,0.00118594,65769.0,65768.0,1.67707804]
[1722403387482,0.0804,65779.0,65778.0,1.064185]
[1722403387688,0.0804,65779.0,65778.0,1.31481804]
[1722403388933,0.0804,65779.0,65778.0,1.32881804]
[1722403390194,0.0814,65779.0,65778.0,1.03876504]
[1722403390394,0.0814,65779.0,65778.0,0.43065904]
[1722403390598,0.0814,65779.0,65778.0,0.73471204]
[1722403390806,0.0814,65779.0,65778.0,0.72071204]
[1722403390807,0.0804,65779.0,65778.0,0.72071204]
[1722403391214,0.0814,65779.0,65778.0,0.73471204]
[1722403391616,0.0804,65779.0,65778.0,0.72071204]
[1722403391814,0.1413,65779.0,65778.0,0.27376434]
[1722403392063,0.15216505,65779.0,65778.0,0.014]
[1722403392267,0.30618905,65779.0,65778.0,0.014]
[1722403392519,0.40126129,65779.0,65778.0,0.014]
[1722403392747,0.4012619,65779.0,65778.0,0.014]
[1722403392977,0.34119544,65779.0,65778.0,0.028]
[1722403393190,0.34140043,65779.0,65778.0,0.014]
[1722403393390,0.34140043,65779.0,65770.0,0.00918047]
[1722403393391,0.002,65777.0,65772.0,0.304077]
[1722403393623,0.1408,65775.0,65774.0,0.456106]
[1722403393799,0.15163739,65775.0,65774.0,0.60673904]
[1722403394618,0.15163739,65775.0,65774.0,0.30266804]
[1722403394818,0.1428,65773.0,65772.0,0.014]
[1722403395168,0.19908304,65773.0,65772.0,0.014]
[1722403395362,0.35112104,65773.0,65772.0,0.014]
[1722403395567,0.60972449,65773.0,65772.0,0.014]
[1722403395780,0.91380049,65773.0,65772.0,0.028]
[1722403395988,0.91380049,65773.0,65762.0,0.152062]
[1722403395989,0.139,65770.0,65762.0,0.152062]
[1722403396194,0.139,65764.0,65763.0,0.15206]
[1722403396402,0.139,65764.0,65749.0,0.02]
[1722403396403,0.0786,65760.0,65757.0,0.304147]
[1722403396606,0.0786,65760.0,65759.0,0.46532673]
[1722403396811,0.0786,65760.0,65759.0,0.456208]
[1722403397026,0.0786,65760.0,65759.0,0.760348]
[1722403397234,0.0786,65760.0,65759.0,0.860348]
[1722403398076,0.0786,65760.0,65759.0,0.556208]
[1722403398585,0.0786,65760.0,65759.0,0.252068]
[1722403398792,0.1425,65760.0,65759.0,0.556208]
[1722403399006,0.1425,65760.0,65759.0,0.860348]
[1722403399268,0.1425,65760.0,65759.0,0.569208]
[1722403399269,0.1435,65760.0,65759.0,0.569208]
[1722403399447,0.1435,65760.0,65759.0,0.582208]
[1722403399678,0.1435,65760.0,65759.0,0.569208]
[1722403400095,0.1435,65760.0,65759.0,0.583208]
[1722403400301,0.1435,65760.0,65759.0,0.71984104]
[1722403400524,0.1425,65760.0,65759.0,0.70684104]
[1722403400739,0.1425,65760.0,65759.0,1.02498104]
[1722403400949,0.1435,65760.0,65759.0,1.02498104]
[1722403401366,0.1425,65760.0,65759.0,1.01098104]
[1722403401572,0.0786,65760.0,65759.0,1.01098104]
[1722403401795,0.0796,65760.0,65759.0,1.02498104]
[1722403402003,0.0796,65760.0,65759.0,1.32912104]
[1722403402004,0.001,65760.0,65759.0,1.32912104]
[1722403402218,0.0603,65763.0,65762.0,0.760317]
[1722403402424,0.0806,65764.0,65763.0,0.760305]
[1722403402640,0.0806,65764.0,65763.0,0.91093804]
[1722403402849,0.0806,65764.0,65763.0,1.21506004]
[1722403403472,0.0806,65764.0,65763.0,0.91093804]
[1722403404933,0.0658,65770.0,65769.0,0.152047]
[1722403405142,0.0658,65776.0,65775.0,0.456099]
[1722403405344,0.1469,65776.0,65775.0,0.91079804]
[1722403405551,0.1469,65776.0,65775.0,1.21486404]
[1722403406889,0.1469,65776.0,65775.0,1.22686404]
[1722403407113,0.1469,65776.0,65775.0,1.21486404]
[1722403407911,0.1469,65776.0,65775.0,1.22686404]
[1722403408554,0.1469,65776.0,65775.0,1.22886404]
[1722403408769,0.1469,65776.0,65775.0,1.24186404]
[1722403408976,0.1469,65776.0,65775.0,0.93779804]
[1722403409389,0.1489,65776.0,65775.0,0.93779804]
[1722403409808,0.1469,65776.0,65775.0,0.93779804]
[1722403410016,0.1489,65776.0,65775.0,0.63373204]
[1722403410234,0.1489,65776.0,65775.0,0.179033]
[1722403410235,0.194372,65776.0,65775.0,0.179033]
[1722403410452,0.1489,65776.0,65775.0,0.027]
[1722403410673,0.300931,65776.0,65775.0,0.027]
[1722403410900,0.69962855,65776.0,65775.0,0.027]
[1722403411324,0.69962855,65776.0,65775.0,0.014]
[1722403411539,1.00460356,65776.0,65775.0,0.014]
[1722403411740,0.002,65768.0,65767.0,0.1]
[1722403412012,0.21201036,65768.0,65767.0,0.1]
[1722403412218,0.1438,65768.0,65767.0,0.152051]
[1722403412441,0.1438,65768.0,65767.0,0.252051]
[1722403413099,0.22274645,65768.0,65767.0,0.266051]
[1722403413329,0.15253553,65768.0,65767.0,0.266051]
[1722403414150,0.15253553,65768.0,65767.0,0.280051]
[1722403415833,0.1418,65768.0,65767.0,0.584154]
[1722403416028,0.1525355,65768.0,65767.0,0.584154]
[1722403416887,0.1525355,65768.0,65767.0,0.128]
[1722403416888,0.19999865,65768.0,65767.0,0.128]
[1722403417095,0.19999865,65768.0,65767.0,0.028]
[1722403417300,0.1545355,65768.0,65767.0,0.028]
[1722403417505,0.19999011,65768.0,65767.0,0.028]
[1722403418918,0.1545355,65768.0,65767.0,0.028]
[1722403419116,0.20000699,65768.0,65767.0,0.028]
[1722403422011,0.22274281,65768.0,65767.0,0.028]
[1722403422224,0.1545355,65768.0,65767.0,0.028]
[1722403422427,0.22274312,65768.0,65767.0,0.028]
[1722403422834,0.22274458,65768.0,65767.0,0.028]
[1722403424267,0.31812844,65768.0,65767.0,0.028]
[1722403425512,0.22275329,65768.0,65767.0,0.028]
[1722403425635,0.31817393,65768.0,65767.0,0.028]
[1722403428220,0.22276038,65768.0,65767.0,0.028]
[1722403428615,0.24999155,65768.0,65767.0,0.028]
[1722403428819,0.24999156,65768.0,65767.0,0.028]
[1722403431140,0.34095766,65768.0,65767.0,0.028]
[1722403432208,0.3412082,65768.0,65767.0,0.028]
[1722403432472,0.3392082,65768.0,65767.0,0.028]
[1722403432705,0.0107355,65768.0,65767.0,1.24299304]
[1722403432919,0.0107355,65768.0,65767.0,1.30839304]
[1722403433145,0.00091301,65776.0,65775.0,0.152033]
[1722403433352,0.00091301,65776.0,65775.0,0.91079804]
[1722403433774,0.011588,65776.0,65775.0,0.91079804]
[1722403434399,0.00091301,65776.0,65775.0,0.92479804]
[1722403434598,0.00091301,65776.0,65775.0,0.014]
[1722403434599,0.01158749,65776.0,65775.0,0.014]
[1722403434812,0.01358749,65776.0,65775.0,0.180033]
[1722403435027,0.22312828,65776.0,65775.0,0.028]
[1722403435231,0.10924123,65776.0,65775.0,0.028]
[1722403435434,0.22314777,65776.0,65775.0,0.028]
[1722403435838,0.12749403,65776.0,65775.0,0.028]
[1722403436037,0.1096877,65776.0,65775.0,0.180033]
[1722403437722,0.10981169,65776.0,65775.0,0.180033]
[1722403438443,0.01371148,65776.0,65775.0,0.180033]
[1722403438657,0.10988653,65776.0,65775.0,0.180033]
[1722403438865,0.10788653,65776.0,65775.0,0.180033]
[1722403439892,0.10788653,65776.0,65775.0,0.484099]
[1722403441169,0.10840071,65776.0,65775.0,0.484099]
[1722403441831,0.10838174,65776.0,65775.0,0.484099]
[1722403442680,0.22233195,65776.0,65775.0,0.484099]
[1722403442885,0.12566169,65776.0,65775.0,0.484099]
[1722403443086,0.22235903,65776.0,65775.0,0.788165]
[1722403443240,0.01171148,65776.0,65775.0,0.788165]
[1722403443448,0.08008376,65776.0,65775.0,0.788165]
[1722403443653,0.01171148,65776.0,65775.0,0.788165]
[1722403443854,0.08008376,65776.0,65775.0,0.788165]
[1722403444054,0.08008376,65776.0,65775.0,0.180033]
[1722403444055,0.01171148,65776.0,65775.0,0.180033]
[1722403444372,0.17409616,65776.0,65775.0,0.028]
[1722403444741,0.18484126,65776.0,65775.0,0.028]
[1722403445158,0.18484126,65776.0,65775.0,0.180033]
[1722403445781,0.25064126,65776.0,65775.0,0.028]
[1722403445990,0.40776394,65776.0,65775.0,0.028]
[1722403446195,0.71182594,65776.0,65775.0,0.028]
[1722403446394,1.01588794,65776.0,65775.0,0.028]
[1722403447483,0.71134025,65776.0,65775.0,0.028]
[1722403447688,0.40727825,65776.0,65775.0,0.028]
[1722403447901,0.71134025,65776.0,65775.0,0.028]
[1722403448120,1.01540225,65776.0,65775.0,0.028]
[1722403448331,1.15212843,65776.0,65775.0,0.028]
[1722403448539,1.01540225,65776.0,65775.0,0.028]
[1722403448894,1.15212843,65776.0,65775.0,0.028]
[1722403449320,0.84806643,65776.0,65775.0,0.028]
[1722403449931,0.71134025,65776.0,65775.0,0.028]
[1722403450132,0.84806643,65776.0,65775.0,0.028]
[1722403450331,0.71134025,65776.0,65775.0,0.028]
[1722403450564,1.01540225,65776.0,65775.0,0.028]
[1722403450761,1.01544153,65776.0,65775.0,0.028]
[1722403451104,1.47013657,65776.0,65775.0,0.028]
[1722403451280,1.47013938,65776.0,65775.0,0.028]
[1722403451493,1.59867306,65776.0,65775.0,0.028]
[1722403452106,1.59867306,65776.0,65775.0,0.014]
[1722403452314,1.59867306,65776.0,65759.0,0.00083]
[1722403452315,0.152064,65762.0,65759.0,0.00083]
[1722403452518,0.26249665,65760.0,65759.0,0.00083]
[1722403452919,0.36739441,65760.0,65759.0,0.00083]
[1722403453247,0.2714647,65760.0,65759.0,0.00083]
[1722403453382,0.2694647,65760.0,65759.0,0.01483]
[1722403453581,0.2694647,65760.0,65759.0,0.02883]
[1722403454012,0.2694647,65760.0,65759.0,0.01483]
[1722403454243,0.00897896,65760.0,65759.0,0.93981304]
[1722403454425,0.00012399,65760.0,65759.0,0.93981304]
[1722403454625,0.06850977,65760.0,65759.0,0.62167304]
[1722403454849,0.07736474,65760.0,65759.0,0.62167304]
[1722403455082,0.07736474,65760.0,65759.0,0.93981304]
[1722403455475,0.06850977,65760.0,65759.0,0.63567304]
[1722403455643,0.07736569,65760.0,65759.0,0.63567304]
[1722403455822,0.07736569,65760.0,65759.0,0.93981304]
[1722403456032,0.06850977,65760.0,65759.0,0.63567304]
[1722403456446,0.07736569,65760.0,65759.0,0.93981304]
[1722403456657,0.06850977,65760.0,65759.0,0.63567304]
[1722403456860,0.07736474,65760.0,65759.0,0.63567304]
[1722403457267,0.07734934,65760.0,65759.0,0.63567304]
[1722403457473,0.00897896,65760.0,65759.0,0.63567304]
[1722403457686,0.00012399,65760.0,65759.0,0.63567304]
[1722403458738,0.00012399,65760.0,65759.0,0.93981304]
[1722403458936,0.00012399,65760.0,65759.0,0.63567304]
[1722403459367,0.00897887,65760.0,65759.0,0.63567304]
[1722403459715,0.00012399,65760.0,65759.0,0.63567304]
[1722403462073,0.06846535,65760.0,65759.0,0.63567304]
[1722403462551,0.0773203,65760.0,65759.0,0.63567304]
[1722403465347,0.0773203,65760.0,65759.0,0.93981304]
[1722403465550,0.0773203,65760.0,65759.0,0.63567304]
[1722403465753,0.0773203,65760.0,65759.0,0.93981304]
[1722403465958,0.0773203,65760.0,65759.0,0.63567304]
[1722403466163,0.0773203,65760.0,65759.0,0.93981304]
[1722403466366,0.0773203,65760.0,65759.0,0.63567304]
[1722403467236,0.15337894,65760.0,65759.0,0.33153304]
[1722403467446,0.22168523,65760.0,65759.0,0.33153304]
[1722403467655,0.21283028,65760.0,65759.0,0.33153304]
[1722403467865,0.22165681,65760.0,65759.0,0.33153304]
[1722403468286,0.22165681,65760.0,65759.0,0.63567304]
[1722403468287,0.21965681,65760.0,65759.0,0.63567304]
[1722403470664,0.21963873,65760.0,65759.0,0.63567304]
[1722403471089,0.15135052,65760.0,65759.0,0.93981304]
[1722403471299,0.00012399,65760.0,65759.0,0.93981304]
[1722403471507,0.05447551,65760.0,65759.0,0.93981304]
[1722403472360,0.05447551,65760.0,65759.0,0.63567304]
[1722403473967,0.05447525,65760.0,65759.0,0.63567304]
[1722403474172,0.19327525,65760.0,65759.0,0.33153304]
[1722403474567,0.14775021,65760.0,65759.0,0.33153304]
[1722403474742,0.14975021,65760.0,65759.0,0.02883]
[1722403475162,0.33613523,65760.0,65759.0,0.02883]
[1722403475561,0.24508514,65760.0,65759.0,0.02883]
[1722403477221,0.14975021,65760.0,65759.0,0.02883]
[1722403477446,0.24517754,65760.0,65759.0,0.02883]
[1722403478292,0.48827698,65760.0,65759.0,0.02883]
[1722403478464,0.39724554,65760.0,65759.0,0.02883]
[1722403478701,0.24517754,65760.0,65759.0,0.02883]
[1722403479289,0.24317754,65760.0,65759.0,0.02883]
[1722403479487,0.33421138,65760.0,65759.0,0.02883]
[1722403480640,0.33455727,65760.0,65759.0,0.02883]
[1722403481059,0.33472982,65760.0,65759.0,0.02883]
[1722403482746,0.19592982,65760.0,65759.0,0.1809]
[1722403482945,0.19592982,65760.0,65759.0,0.48504]
[1722403483152,0.19592982,65760.0,65759.0,0.78918]
[1722403483357,0.17318462,65760.0,65759.0,0.93981304]
[1722403483564,0.05447768,65760.0,65759.0,0.93981304]
[1722403485228,0.00895021,65760.0,65759.0,0.93981304]
[1722403485637,0.00895021,65760.0,65759.0,1.24395304]
[1722403485843,0.05448693,65760.0,65759.0,1.24395304]
[1722403486046,0.00012399,65760.0,65759.0,1.24395304]
[1722403486954,0.00891273,65760.0,65759.0,1.24395304]
[1722403488230,0.05443709,65760.0,65759.0,1.24395304]
[1722403489449,0.05443709,65760.0,65759.0,0.93981304]
[1722403489871,0.08791273,65760.0,65759.0,0.93981304]
[1722403489997,0.15411273,65760.0,65759.0,0.93981304]
[1722403490432,0.22246806,65760.0,65759.0,0.93981304]
[1722403490842,0.15411273,65760.0,65759.0,0.93981304]
[1722403491036,0.22247105,65760.0,65759.0,0.93981304]
[1722403491238,0.14532399,65760.0,65759.0,0.93981304]
[1722403491460,0.15411379,65760.0,65759.0,0.93981304]
[1722403492157,0.24525822,65760.0,65759.0,0.93981304]
[1722403492363,0.17905822,65760.0,65759.0,0.93981304]
[1722403492566,0.10005822,65760.0,65759.0,0.93981304]
[1722403493565,0.00891379,65760.0,65759.0,0.93981304]
[1722403493767,0.00012399,65760.0,65759.0,0.93981304]
[1722403495153,0.09139125,65760.0,65759.0,0.93981304]
[1722403495312,0.09139125,65760.0,65759.0,1.24395304]
[1722403495313,0.1001935,65760.0,65759.0,1.24395304]
[1722403495546,0.09139125,65760.0,65759.0,1.24395304]
[1722403496066,0.09139125,65760.0,65759.0,0.93981304]
[1722403496405,0.09139125,65760.0,65759.0,0.17946304]
[1722403496618,0.09139125,65760.0,65759.0,0.02883]
[1722403496619,0.4093593,65760.0,65759.0,0.02883]
[1722403496810,0.23936913,65760.0,65759.0,0.02883]
[1722403497110,0.24819761,65760.0,65759.0,0.02883]
[1722403497828,0.25019761,65760.0,65759.0,0.02883]
[1722403500174,0.15405263,65760.0,65759.0,0.02883]
[1722403500369,0.2439681,65760.0,65759.0,0.02883]
[1722403500577,0.15205263,65760.0,65759.0,0.1809]
[1722403500696,0.24397003,65760.0,65759.0,0.1809]
[1722403500898,0.24394653,65760.0,65759.0,0.1809]
[1722403501917,0.24594653,65760.0,65759.0,0.02883]
[1722403502500,0.24622285,65760.0,65759.0,0.02883]
[1722403502620,0.24622446,65760.0,65759.0,0.02883]
[1722403503679,0.24422446,65760.0,65759.0,0.1809]
[1722403505102,0.24422446,65760.0,65759.0,0.48504]
[1722403505301,0.09002913,65760.0,65759.0,0.78918]
[1722403506083,0.09002913,65760.0,65759.0,0.48504]
[1722403506287,0.09202913,65760.0,65759.0,0.1809]
[1722403506515,0.09202913,65760.0,65759.0,0.02883]
[1722403506516,0.18463641,65760.0,65759.0,0.02883]
[1722403508788,0.32160314,65760.0,65759.0,0.02883]
[1722403508991,0.30649713,65760.0,65759.0,0.02883]
[1722403509199,0.70293261,65760.0,65759.0,0.02883]
[1722403509398,0.39879661,65760.0,65759.0,0.02883]
[1722403511380,0.24672861,65760.0,65759.0,0.02883]
[1722403512383,0.24729162,65760.0,65759.0,0.02883]
[1722403512859,0.15442913,65760.0,65759.0,0.02883]
[1722403513065,0.24729419,65760.0,65759.0,0.02883]
[1722403515646,0.15442913,65760.0,65759.0,0.02883]
[1722403515851,0.24727478,65760.0,65759.0,0.02883]
[1722403519024,0.24764481,65760.0,65759.0,0.02883]
[1722403519992,0.24764409,65760.0,65759.0,0.02883]
[1722403521439,0.18324409,65760.0,65759.0,0.48504]
[1722403521864,0.09002913,65760.0,65759.0,0.48504]
[1722403522069,0.18308523,65760.0,65759.0,0.48504]
[1722403522271,0.18308539,65760.0,65759.0,0.48504]
[1722403522480,0.09002913,65760.0,65759.0,0.48504]
[1722403522684,0.1830855,65760.0,65759.0,0.48504]
[1722403522905,0.18308531,65760.0,65759.0,0.48504]
[1722403524201,0.00892913,65760.0,65759.0,0.93981304]
[1722403524412,0.00892913,65760.0,65759.0,1.14221304]
[1722403524578,0.00892913,65760.0,65759.0,1.44635304]
[1722403524797,0.00012399,65760.0,65759.0,1.44635304]
[1722403524935,0.00012399,65760.0,65759.0,1.45635304]
[1722403525348,0.06842651,65767.0,65763.0,0.01]
[1722403525580,0.09214836,65769.0,65759.0,0.27946304]
[1722403525581,0.00091301,65769.0,65768.0,0.162049]
[1722403525789,0.04562077,65779.0,65772.0,0.01]
[1722403525986,0.44444115,65785.0,65775.0,0.858265]
[1722403525987,0.04562077,65780.0,65775.0,0.858265]
[1722403526271,0.11405193,65787.0,65775.0,0.858265]
[1722403526272,0.04562077,65786.0,65775.0,1.45266404]
[1722403526479,0.04562077,65786.0,65775.0,1.75673004]
[1722403526894,0.04562077,65786.0,65775.0,1.74673004]
[1722403527468,0.04562077,65786.0,65775.0,1.58856404]
[1722403527469,0.04562077,65785.0,65775.0,1.58856404]
[1722403527629,0.04562077,65784.0,65775.0,1.58856404]
[1722403527849,0.04562077,65783.0,65775.0,1.64948304]
[1722403528296,0.04562077,65785.0,65775.0,1.64948304]
[1722403528697,0.04562077,65784.0,65775.0,1.64948304]
[1722403528903,0.04553788,65784.0,65775.0,1.66348304]
[1722403529304,0.04553788,65785.0,65775.0,1.66348304]
[1722403529737,0.04553788,65785.0,65775.0,1.64948304]
[1722403530214,0.04553788,65785.0,65775.0,1.66348304]
[1722403530415,0.04553788,65786.0,65775.0,1.66348304]
[1722403530564,0.04553788,65786.0,65775.0,1.64948304]
[1722403530944,0.04553788,65786.0,65775.0,1.66348304]
[1722403531353,0.00091301,65792.0,65775.0,1.67348304]
[1722403531354,0.04553788,65790.0,65775.0,1.67348304]
[1722403531569,0.04553788,65791.0,65775.0,1.67348304]
[1722403531773,0.04645089,65792.0,65775.0,1.97754904]
[1722403531979,0.04645089,65792.0,65775.0,1.67348304]
[1722403532193,0.00091301,65792.0,65775.0,1.67348304]
[1722403532801,0.00091301,65792.0,65775.0,1.66348304]
[1722403533047,0.00091301,65792.0,65775.0,1.64948304]
[1722403533197,0.0778,65783.0,65775.0,1.62378304]
[1722403533588,0.1423,65783.0,65775.0,1.62378304]
[1722403533790,0.1423,65783.0,65775.0,1.59578304]
[1722403533996,0.1423,65783.0,65775.0,1.60978304]
[1722403534211,0.1423,65783.0,65775.0,1.62378304]
[1722403534415,0.1423,65783.0,65775.0,1.60978304]
[1722403535179,0.1423,65783.0,65775.0,1.62378304]
[1722403536783,0.1423,65783.0,65775.0,1.60978304]